bitfinex-derivatives/quotes_ETHF0:USTF0_20250507
["timestamp","ask_amount","ask_price","bid_price","bid_amount"]
[1746609457516,3.2078,1839.7,1839.5,1.96336]
[1746609457913,1.08724,1839.6,1839.5,0.8761]
[1746609458321,1.08724,1839.6,1839.5,1.96336]
[1746609459022,3.2078,1839.7,1839.5,1.96336]
[1746609459521,1.08724,1839.6,1839.5,0.8761]
[1746609459918,1.08724,1839.6,1839.5,1.9634]
[1746609460121,5.8466,1839.8,1839.5,0.8761]
[1746609460319,5.8466,1839.8,1839.7,1.08718]
[1746609461121,1.08718,1839.7,1839.6,2.6944]
[1746609462223,6.93377,1839.8,1839.7,1.08718]
[1746609462720,1.08718,1839.7,1839.6,2.6944]
[1746609462921,1.08712,1839.9,1839.8,1.08712]
[1746609464219,2.72202,1839.9,1839.8,1.08712]
[1746609465523,2.72201,1839.9,1839.8,1.08712]
[1746609465915,1.08717,1839.8,1839.7,1.08715]
[1746609466127,3.49687,1839.8,1839.7,1.08715]
[1746609468217,2.4097,1839.8,1839.7,1.08715]
[1746609468422,1.5871,1839.8,1839.7,2.76415]
[1746609468722,2.81355,1840.0,1839.9,1.08706]
[1746609468925,4.40065,1840.0,1839.9,1.08706]
[1746609469312,1.08706,1839.9,1839.8,4.49668]
[1746609469621,2.79946,1839.9,1839.8,1.94948]
[1746609470722,2.79946,1839.9,1839.8,1.08708]
[1746609471125,1.08712,1839.8,1839.7,2.74844]
[1746609471328,2.79952,1839.8,1839.7,2.74844]
[1746609471622,2.79952,1839.8,1839.7,1.08714]
[1746609473629,1.08718,1839.7,1839.6,1.94963]
[1746609473823,4.42858,1839.7,1839.6,1.94963]
[1746609480535,3.3414,1839.7,1839.6,1.94963]
[1746609480740,4.42858,1839.7,1839.6,1.94963]
[1746609480935,1.08711,1839.9,1839.7,2.71787]
[1746609481129,2.84111,1839.9,1839.7,5.18437]
[1746609481328,2.84111,1839.9,1839.8,0.7899]
[1746609481539,1.754,1839.9,1839.8,1.87694]
[1746609481830,1.754,1839.9,1839.8,3.52224]
[1746609482533,7.3958,1840.1,1840.0,1.08701]
[1746609482729,0.8584,1840.2,1840.1,1.08695]
[1746609482929,5.0178,1840.4,1840.1,1.08695]
[1746609483237,5.0178,1840.4,1840.3,1.08683]
[1746609483636,4.188,1840.4,1840.3,2.73213]
[1746609483839,5.8266,1840.4,1840.3,2.73213]
[1746609485439,0.8584,1840.5,1840.4,1.08677]
[1746609485735,0.8584,1840.5,1840.4,2.79747]
[1746609486738,4.8297,1840.6,1840.5,1.08671]
[1746609486935,4.8297,1840.6,1840.5,3.59451]
[1746609487236,5.91635,1840.6,1840.5,3.59451]
[1746609487536,4.8297,1840.6,1840.5,3.59451]
[1746609489335,1.6219,1840.6,1840.5,3.59451]
[1746609489638,5.0144,1840.7,1840.5,3.59451]
[1746609489639,5.0144,1840.7,1840.6,1.08665]
[1746609489938,6.7476,1840.7,1840.6,2.77215]
[1746609490143,5.9202,1840.7,1840.6,2.77215]
[1746609490332,7.00679,1840.7,1840.6,2.77215]
[1746609492539,7.00679,1840.7,1840.6,1.08665]
[1746609497442,1.08665,1840.6,1840.5,1.08667]
[1746609497744,3.59405,1840.6,1840.5,1.08667]
[1746609503343,1.08677,1840.5,1840.4,1.08671]
[1746609503546,3.58887,1840.5,1840.4,1.08671]
[1746609504043,2.5021,1840.5,1840.4,1.08671]
[1746609504231,3.58881,1840.5,1840.4,1.08671]
[1746609513452,1.7033,1840.5,1840.4,1.08671]
[1746609513651,1.7033,1840.5,1840.4,2.79981]
[1746609513854,6.97502,1840.7,1840.6,1.08665]
[1746609514347,6.97502,1840.7,1840.6,1.96165]
[1746609514548,6.97502,1840.7,1840.6,3.67475]
[1746609515249,2.78802,1840.7,1840.6,3.67475]
[1746609515556,2.78799,1840.7,1840.6,3.67475]
[1746609515744,3.2078,1840.8,1840.7,1.08659]
[1746609515944,1.6566,1840.9,1840.8,1.08653]
[1746609516151,1.08629,1841.3,1841.2,1.08626]
[1746609516449,1.6463,1841.4,1840.9,3.59113]
[1746609516653,1.08633,1841.2,1841.1,1.08631]
[1746609517153,1.08627,1841.3,1841.2,1.08625]
[1746609517551,2.74287,1841.3,1841.2,1.08625]
[1746609517750,1.08633,1841.2,1841.1,1.08631]
[1746609517950,2.69013,1841.2,1841.1,1.08631]
[1746609518448,2.69014,1841.2,1841.1,1.08636]
[1746609518853,1.08641,1841.1,1841.0,1.08639]
[1746609519053,3.49301,1841.1,1841.0,1.08639]
[1746609524746,1.6038,1841.1,1841.0,2.83739]
[1746609525151,4.184,1841.3,1841.0,8.76113]
[1746609525353,5.9267,1841.3,1841.2,1.0863]
[1746609525557,7.01298,1841.3,1841.2,1.0863]
[1746609526359,1.0863,1841.2,1841.1,3.69631]
[1746609526656,2.829,1841.2,1841.1,1.08631]
[1746609530462,1.08642,1841.1,1841.0,1.08637]
[1746609530762,4.53422,1841.1,1841.0,1.08637]
[1746609539361,1.08642,1841.0,1840.9,1.96147]
[1746609539660,2.82862,1841.0,1840.9,1.96147]
[1746609543363,1.7422,1841.0,1840.9,1.96147]
[1746609543671,2.82862,1841.0,1840.9,1.96147]
[1746609543968,2.82862,1841.0,1840.9,3.57917]
[1746609549066,1.9445,1841.1,1841.0,1.08642]
[1746609549571,3.5848,1841.1,1841.0,2.83152]
[1746609551275,2.7267,1841.1,1841.0,2.83152]
[1746609554878,2.71605,1841.0,1840.6,10.46167912]
[1746609555081,1.08652,1840.9,1840.8,1.08647]
[1746609555376,4.42758,1841.0,1840.9,1.08647]
[1746609555576,2.74008,1841.0,1840.9,3.52477]
[1746609555776,2.74008,1841.0,1840.9,4.36707]
[1746609559577,2.74008,1841.0,1840.9,0.8496]
[1746609561382,2.74008,1841.0,1840.9,1.93607]
[1746609563482,2.74008,1841.0,1840.9,3.52227]
[1746609564382,1.08647,1840.9,1840.8,4.29429]
[1746609564584,4.46327,1840.9,1840.8,4.29429]
[1746609565088,4.46327,1840.9,1840.8,3.2078]
[1746609565393,1.08653,1840.8,1840.7,9.14531912]
[1746609565576,2.77083,1840.8,1840.7,8.34041912]
[1746609566087,2.77083,1840.8,1840.7,7.25387912]
[1746609569280,6.37083,1840.8,1840.7,7.25387912]
[1746609570089,6.37083,1840.8,1840.4,6.70483]
[1746609570090,1.08671,1840.5,1840.4,6.70483]
[1746609570290,1.08671,1840.5,1840.4,5.12343]
[1746609570984,1.08671,1840.5,1840.4,4.0367]
[1746609571189,1.08677,1840.4,1840.3,9.17457912]
[1746609572188,1.08677,1840.4,1840.3,8.34067912]
[1746609572387,1.08677,1840.4,1840.3,8.34070912]
[1746609572686,1.08677,1840.4,1840.3,7.25387912]
[1746609573287,1.08677,1840.4,1840.2,11.92254711]
[1746609573288,1.08683,1840.3,1840.2,1.08689]
[1746609573484,3.2964,1840.3,1840.2,1.08689]
[1746609573790,4.38323,1840.3,1840.2,1.08689]
[1746609573979,3.2964,1840.3,1840.2,1.08689]
[1746609574183,3.57883,1840.3,1840.2,1.08689]
[1746609574489,3.57883,1840.3,1840.2,2.70979]
[1746609577492,1.08689,1840.2,1840.1,1.93311]
[1746609577691,3.56699,1840.2,1840.1,1.93311]
[1746609578990,3.56699,1840.2,1840.1,3.57461]
[1746609580798,3.56699,1840.2,1840.1,3.57465]
[1746609583397,8.40524,1840.2,1839.8,3.2078]
[1746609583591,1.08706,1839.9,1839.8,4.29487]
[1746609584390,3.65756,1839.9,1839.8,4.29487]
[1746609585091,3.65756,1839.9,1839.8,3.2078]
[1746609585292,1.08712,1839.8,1839.7,4.49914]
[1746609585600,0.8761,1840.0,1839.7,3.412]
[1746609585800,1.96314,1840.0,1839.9,1.08706]
[1746609586000,1.08706,1839.9,1839.8,2.83758]
[1746609586398,1.6429,1839.9,1839.8,2.83758]
[1746609586892,4.182,1840.1,1839.9,1.08706]
[1746609587092,4.182,1840.1,1840.0,1.08701]
[1746609587298,4.182,1840.1,1840.0,2.71511]
[1746609588096,5.26895,1840.1,1840.0,2.71511]
[1746609588302,4.182,1840.1,1840.0,2.71511]
[1746609588704,5.26895,1840.1,1840.0,2.71511]
[1746609591309,1.08701,1840.0,1839.9,2.83752]
[1746609591497,3.68521,1840.0,1839.9,2.83752]
[1746609592004,3.68521,1840.0,1839.9,1.08702]
[1746609592302,1.08712,1839.9,1839.8,1.08708]
[1746609592503,2.83782,1839.9,1839.8,1.08708]
[1746609594202,2.83782,1839.9,1839.8,2.80368]
[1746609595307,3.63062,1839.9,1839.8,1.08708]
[1746609600911,2.5435,1839.9,1839.8,2.81068]
[1746609601113,7.79699,1840.1,1840.0,1.08701]
[1746609601507,7.79699,1840.1,1840.0,1.89611]
[1746609602516,7.79699,1840.1,1839.9,1.7236]
[1746609602517,1.08701,1840.0,1839.9,2.81063]
[1746609602708,2.78451,1840.0,1839.9,2.81063]
[1746609603509,2.78451,1840.0,1839.9,1.08703]
[1746609606023,1.6975,1840.0,1839.9,2.71293]
[1746609606628,5.26895,1840.1,1840.0,1.08701]
[1746609606822,5.26895,1840.1,1840.0,2.76751]
[1746609607428,6.93045,1840.1,1840.0,2.76751]
[1746609610522,5.8435,1840.1,1840.0,2.76751]
[1746609610721,4.182,1840.1,1840.0,3.58341]
[1746609610915,1.6471,1840.2,1840.1,1.08695]
[1746609611119,5.88838,1840.3,1840.2,1.08689]
[1746609611922,1.5937,1840.3,1840.2,2.72119]
[1746609612126,4.29452,1840.5,1840.4,1.08677]
[1746609613229,5.96502,1840.5,1840.4,1.08677]
[1746609613418,5.96502,1840.5,1840.4,1.88097]
[1746609614030,5.96502,1840.5,1840.4,3.57507]
[1746609614631,4.8783,1840.5,1840.4,3.57507]
[1746609621431,7.3888,1840.7,1840.6,1.08665]
[1746609621631,4.181,1840.7,1840.6,1.08665]
[1746609622032,4.181,1840.7,1840.6,3.63535]
[1746609622734,4.39163,1840.8,1840.7,1.08659]
[1746609622937,2.67783,1840.8,1840.7,1.08659]
[1746609623529,2.67783,1840.8,1840.7,1.94049]
[1746609633247,2.67783,1840.8,1840.7,1.08659]
[1746609633437,4.27513,1840.8,1840.7,1.08659]
[1746609638042,3.1886,1840.8,1840.7,1.08659]
[1746609638250,4.27513,1840.8,1840.7,2.70219]
[1746609640339,3.1886,1840.8,1840.7,2.70219]
[1746609641549,1.5973,1840.8,1840.7,2.70219]
[1746609643048,1.08628,1841.3,1841.2,1.08624]
[1746609643248,4.41318,1841.3,1841.2,1.08624]
[1746609645552,3.3269,1841.3,1841.2,1.08624]
[1746609645851,2.4574,1841.3,1841.2,2.69274]
[1746609646449,1.6217,1841.3,1841.2,2.69274]
[1746609646954,2.70794,1841.3,1841.2,2.69274]
[1746609647454,1.6217,1841.3,1841.2,2.69274]
[1746609650051,0.8083,1841.5,1841.2,2.4262]
[1746609650258,2.553,1841.5,1841.4,1.08618]
[1746609650645,2.553,1841.5,1841.4,1.89808]
[1746609651456,3.63912,1841.5,1841.4,1.89808]
[1746609651756,3.63912,1841.5,1841.4,1.08618]
[1746609656159,1.7447,1841.5,1841.4,1.08618]
[1746609656354,1.7447,1841.5,1841.4,4.29398]
[1746609656652,1.7447,1841.5,1841.4,1.08618]
[1746609656853,2.83082,1841.5,1841.4,1.08618]
[1746609657048,3.68482,1841.5,1841.4,1.08618]
[1746609657461,1.08612,1841.5,1841.4,1.08618]
[1746609657759,1.08608,1841.6,1841.5,1.08606]
[1746609658060,2.67618,1841.6,1841.5,1.92866]
[1746609658255,4.33258,1841.6,1841.5,1.92866]
[1746609662762,4.33258,1841.6,1841.5,1.08606]
[1746609664964,3.2465,1841.6,1841.5,1.08606]
[1746609665161,2.4256,1841.6,1841.5,1.08606]
[1746609665374,1.5901,1841.6,1841.5,1.08606]
[1746609665664,1.5901,1841.6,1841.5,3.65836]
[1746609666563,2.67616,1841.6,1841.5,3.65836]
[1746609667662,1.5901,1841.6,1841.5,3.65836]
[1746609667857,2.67616,1841.6,1841.5,3.65836]
[1746609669363,2.67616,1841.6,1841.5,1.08606]
[1746609670763,3.52436,1841.6,1841.5,1.08606]
[1746609685878,2.67616,1841.6,1841.5,1.08606]
[1746609686079,1.5901,1841.6,1841.5,2.83866]
[1746609686281,2.67616,1841.6,1841.5,2.83866]
[1746609687980,2.67616,1841.6,1841.5,1.08606]
[1746609691683,1.5901,1841.6,1841.3,3.2078]
[1746609691882,1.08635,1841.2,1841.1,4.29409]
[1746609692585,2.79005,1841.2,1841.1,4.29409]
[1746609692788,1.7037,1841.2,1841.0,0.8521]
[1746609693091,1.08647,1841.0,1840.9,1.93857]
[1746609694393,2.66917,1841.0,1840.9,1.93857]
[1746609695295,2.66917,1841.0,1840.9,0.8521]
[1746609695694,2.66917,1841.0,1840.9,1.93857]
[1746609696699,2.66912,1841.0,1840.9,1.93857]
[1746609696896,1.5827,1841.0,1840.9,1.93857]
[1746609697693,2.66912,1841.0,1840.9,1.93857]
[1746609698485,2.71506,1841.7,1841.1,1.08636]
[1746609698695,2.78705,1841.5,1841.4,1.08611]
[1746609699896,1.7009,1841.5,1841.4,1.08611]
[1746609700388,1.08603,1841.7,1841.6,1.086]
[1746609700590,0.8657,1841.7,1841.6,1.086]
[1746609700792,1.9517,1841.7,1841.6,1.086]
[1746609701595,3.549,1841.7,1841.6,1.086]
[1746609701998,2.463,1841.7,1841.6,1.086]
[1746609702200,2.463,1841.7,1841.6,2.7365]
[1746609703302,2.463,1841.7,1841.6,3.608]
[1746609704106,1.5973,1841.7,1841.6,3.608]
[1746609705504,2.6833,1841.7,1841.6,1.086]
[1746609708304,1.5973,1841.7,1841.6,1.086]
[1746609708810,2.6833,1841.7,1841.6,2.7058]
[1746609709109,1.5973,1841.7,1841.6,2.7058]
[1746609710111,1.5973,1841.7,1841.6,3.5465]
[1746609710610,2.6833,1841.7,1841.6,3.5465]
[1746609710810,2.6833,1841.7,1841.6,1.086]
[1746609715821,1.08614,1841.6,1841.5,1.08609]
[1746609716006,1.08614,1841.6,1841.3,5.9234]
[1746609716007,1.08618,1841.5,1841.4,1.08613]
[1746609716208,1.89178,1841.5,1841.4,1.08613]
[1746609716407,3.48868,1841.5,1841.4,1.08613]
[1746609717213,2.4025,1841.5,1841.4,1.08613]
[1746609717513,3.48862,1841.5,1841.4,1.08613]
[1746609717811,3.48862,1841.5,1841.4,2.71133]
[1746609721815,2.68302,1841.5,1841.4,3.53453]
[1746609722012,1.5969,1841.5,1841.4,3.53453]
[1746609723214,2.68302,1841.5,1841.4,3.53453]
[1746609724417,2.68302,1841.5,1841.4,1.08613]
[1746609730417,2.68302,1841.5,1841.4,2.67623]
[1746609730919,1.5969,1841.5,1841.4,2.67623]
[1746609731112,2.68302,1841.5,1841.4,2.67623]
[1746609732921,1.5969,1841.5,1841.4,2.67623]
[1746609733126,1.92616,1841.6,1841.5,1.08612]
[1746609733319,5.626,1841.7,1841.6,1.08606]
[1746609733509,0.7911,1841.8,1841.7,1.086]
[1746609734421,0.7911,1841.8,1841.7,2.8346]
[1746609734719,1.87704,1841.8,1841.7,2.8346]
[1746609735020,3.49114,1841.8,1841.7,2.8346]
[1746609738122,2.4052,1841.8,1841.7,2.8346]
[1746609738616,3.49114,1841.8,1841.7,2.8346]
[1746609740626,2.4052,1841.8,1841.7,2.8346]
[1746609740826,3.49114,1841.8,1841.7,2.8346]
[1746609742428,3.49114,1841.8,1841.7,1.086]
[1746609746227,1.086,1841.7,1841.6,1.08602]
[1746609746433,1.08606,1841.6,1841.5,1.08609]
[1746609746832,1.08618,1841.5,1841.4,1.08613]
[1746609747028,1.88328,1841.5,1841.4,1.08613]
[1746609747232,3.51638,1841.5,1841.4,1.08613]
[1746609748236,2.4302,1841.5,1841.4,1.08613]
[1746609748838,3.51632,1841.5,1841.4,1.08613]
[1746609749044,12.52332,1841.5,1841.1,7.24346106]
[1746609749342,1.0863,1841.3,1841.2,1.08625]
[1746609749735,1.0863,1841.2,1841.1,7.24346106]
[1746609750243,6.9473,1841.2,1841.1,7.24346106]
[1746609750441,6.9473,1841.2,1841.1,8.32982106]
[1746609750643,0.8102,1841.4,1841.3,1.08624]
[1746609750846,2.5012,1841.4,1841.3,1.08624]
[1746609751645,3.5874,1841.4,1841.3,1.08624]
[1746609752037,2.5012,1841.4,1841.1,7.24346106]
[1746609752238,1.0863,1841.2,1841.1,8.32977106]
[1746609752443,1.0863,1841.2,1841.1,7.24346106]
[1746609752642,1.0863,1841.2,1841.0,1.08637]
[1746609752643,1.08636,1841.1,1841.0,1.08637]
[1746609752842,2.75366,1841.1,1841.0,1.08637]
[1746609754546,1.08642,1841.0,1840.9,1.92852]
[1746609754747,2.79292,1841.0,1840.9,1.92852]
[1746609755342,2.79292,1841.0,1840.9,1.08642]
[1746609756749,1.08647,1840.9,1840.8,4.29432]
[1746609756948,2.68167,1840.9,1840.8,4.29432]
[1746609762949,6.85267,1840.9,1840.8,3.2078]
[1746609763150,1.08671,1840.6,1840.5,1.08666]
[1746609763748,3.66451,1840.6,1840.5,1.08666]
[1746609765049,1.08671,1840.5,1840.4,1.08674]
[1746609765251,3.60351,1840.5,1840.4,1.08674]
[1746609765656,3.60351,1840.5,1840.3,3.2168]
[1746609765657,1.08677,1840.4,1840.3,4.30358]
[1746609765858,2.73467,1840.4,1840.3,3.46698]
[1746609766250,2.73467,1840.4,1840.3,1.88268]
[1746609767554,2.73467,1840.4,1840.3,3.48058]
[1746609769260,1.6479,1840.4,1840.3,3.48058]
[1746609770761,1.08673,1840.5,1840.4,1.08677]
[1746609770959,6.6378,1840.6,1840.5,1.08671]
[1746609771162,4.171,1840.6,1840.5,1.08671]
[1746609771354,4.171,1840.6,1840.5,2.68731]
[1746609772466,5.25765,1840.6,1840.5,2.68731]
[1746609772758,6.98315,1840.6,1840.5,2.68731]
[1746609773759,6.98315,1840.6,1840.5,1.08671]
[1746609776262,5.8965,1840.6,1840.5,1.08671]
[1746609776663,6.98315,1840.6,1840.5,2.77901]
[1746609779663,6.98315,1840.6,1840.5,1.08671]
[1746609781962,3.47911,1840.5,1840.4,1.08673]
[1746609782862,1.08677,1840.4,1840.3,1.08679]
[1746609783161,2.67933,1840.4,1840.3,1.08683]
[1746609784761,1.08688,1840.3,1840.2,1.08684]
[1746609784962,3.58868,1840.3,1840.2,1.08684]
[1746609785162,7.75968,1840.3,1840.2,1.08684]
[1746609785870,6.6728,1840.3,1840.2,1.08684]
[1746609786063,4.171,1840.3,1840.2,2.70344]
[1746609787967,5.25783,1840.3,1840.2,2.70344]
[1746609788168,6.93583,1840.3,1840.2,2.70344]
[1746609788671,6.93583,1840.3,1840.2,1.08684]
[1746609789969,1.08689,1840.2,1840.1,5.98271]
[1746609790170,4.46619,1840.2,1840.1,1.08691]
[1746609791075,1.08701,1840.1,1840.0,1.08697]
[1746609791273,2.80681,1840.1,1840.0,1.08697]
[1746609794373,1.08701,1840.0,1839.9,4.29482]
[1746609794572,1.681,1840.0,1839.8,0.8362]
[1746609794874,1.6938,1839.9,1839.8,1.92332]
[1746609795078,2.78086,1839.9,1839.8,1.92332]
[1746609795376,4.46186,1839.9,1839.8,1.92332]
[1746609795877,4.46186,1839.9,1839.8,1.08712]
[1746609800080,3.3748,1839.9,1839.8,1.08712]
[1746609800274,1.681,1839.9,1839.8,2.66722]
[1746609800579,4.171,1840.0,1839.9,1.08706]
[1746609800782,4.171,1840.0,1839.9,3.51316]
[1746609806180,5.91015,1840.1,1840.0,1.08701]
[1746609806383,5.91015,1840.1,1840.0,1.87671]
[1746609807087,4.8232,1840.1,1840.0,1.87671]
[1746609807581,5.91015,1840.1,1840.0,1.87671]
[1746609807980,4.8232,1840.1,1840.0,1.87671]
[1746609808283,4.8232,1840.1,1840.0,3.54581]
[1746609811278,5.91015,1840.1,1840.0,3.54581]
[1746609811479,5.91015,1840.1,1840.0,1.87671]
[1746609812083,2.70235,1840.1,1840.0,1.87671]
[1746609812886,4.37305,1840.1,1840.0,1.08701]
[1746609836991,4.37305,1840.1,1840.0,1.94451]
[1746609838498,4.37305,1840.1,1840.0,1.08701]
[1746609842102,3.2078,1840.3,1840.2,1.08689]
[1746609842303,8.46468,1840.3,1840.2,1.08689]
[1746609842502,1.08695,1840.2,1840.1,1.0869]
[1746609843399,2.80495,1840.2,1840.1,1.0869]
[1746609845303,1.08695,1840.1,1840.0,1.08695]
[1746609845497,4.49175,1840.1,1840.0,1.08695]
[1746609846503,7.5748,1840.1,1840.0,1.08695]
[1746609846708,5.8893,1840.1,1840.0,2.70185]
[1746609847000,4.17,1840.1,1840.0,2.70185]
[1746609847308,10.18398,1840.3,1840.2,1.08689]
[1746609848405,10.18398,1840.3,1840.2,3.63369]
[1746609853302,6.97618,1840.3,1840.2,3.63369]
[1746609856816,6.97618,1840.3,1840.2,1.94539]
[1746609857115,6.97618,1840.3,1840.2,1.08689]
[1746609857413,1.08695,1840.2,1840.1,1.0869]
[1746609857614,4.37585,1840.2,1840.1,1.0869]
[1746609869929,3.2889,1840.2,1840.1,1.0869]
[1746609870126,4.37579,1840.2,1840.1,1.0869]
[1746609873020,3.2078,1840.4,1840.3,1.08683]
[1746609873228,4.167,1840.4,1840.3,1.08683]
[1746609873435,4.47156,1840.5,1840.4,1.08677]
[1746609873436,8.63851,1840.5,1840.4,1.08677]
[1746609873930,8.63851,1840.5,1840.4,2.78867]
[1746609875235,8.63851,1840.5,1840.4,1.08677]
[1746609876036,1.08677,1840.4,1840.3,5.10678]
[1746609876235,2.66727,1840.4,1840.3,5.10678]
[1746609876434,2.66727,1840.4,1840.3,4.29458]
[1746609876635,2.66727,1840.4,1840.3,5.08708]
[1746609877739,1.5805,1840.4,1840.3,5.08708]
[1746609877938,1.5805,1840.4,1840.3,6.70628]
[1746609879139,1.5805,1840.4,1840.3,7.57688]
[1746609880239,2.66727,1840.4,1840.3,5.08708]
[1746609881941,1.5805,1840.4,1840.3,5.08708]
[1746609882241,4.9959,1840.5,1840.4,1.08677]
[1746609882441,4.9959,1840.5,1840.4,2.67587]
[1746609882843,4.167,1840.5,1840.4,2.67587]
[1746609883043,4.167,1840.5,1840.4,3.50187]
[1746609883342,5.25371,1840.5,1840.4,3.50187]
[1746609883533,6.89941,1840.5,1840.4,3.50187]
[1746609886346,6.89941,1840.5,1840.4,2.67587]
[1746609886546,6.89941,1840.5,1840.4,1.08677]
[1746609893948,7.76641,1840.5,1840.4,1.08677]
[1746609894444,1.08677,1840.4,1840.3,1.08679]
[1746609894650,3.55237,1840.4,1840.3,1.08679]
[1746609900359,4.167,1840.8,1840.3,3.2078]
[1746609900650,1.7418,1840.9,1840.8,1.08653]
[1746609901456,1.7418,1840.9,1840.8,2.70403]
[1746609905459,4.167,1841.0,1840.9,1.08647]
[1746609905655,4.167,1841.0,1840.9,2.70977]
[1746609907659,0.8569,1841.2,1840.9,1.6233]
[1746609907852,5.0199,1841.2,1841.1,1.08636]
[1746609908051,6.6653,1841.2,1841.1,1.08636]
[1746609908251,6.6653,1841.2,1841.1,2.70886]
[1746609908756,1.8896,1841.4,1841.1,1.6225]
[1746609908962,4.9664,1841.4,1841.3,1.08624]
[1746609909160,2.3833,1841.5,1841.4,1.08618]
[1746609909460,2.3833,1841.5,1841.2,5.43145]
[1746609909461,1.08599,1841.8,1841.7,1.086]
[1746609909672,5.24899,1841.8,1841.7,1.086]
[1746609910162,1.08603,1841.7,1841.6,1.08601]
[1746609910757,2.66603,1841.7,1841.6,1.08601]
[1746609911255,1.58,1841.7,1841.6,1.08601]
[1746609912859,1.58,1841.7,1841.6,1.94421]
[1746609913262,1.58,1841.7,1841.6,3.56541]
[1746609916363,2.666,1841.7,1841.6,3.56541]
[1746609922662,1.58,1841.7,1841.6,3.56541]
[1746609923865,2.666,1841.7,1841.6,3.56541]
[1746609924469,2.666,1841.7,1841.6,1.94421]
[1746609930971,1.08612,1841.6,1841.5,1.08607]
[1746609931166,4.39072,1841.6,1841.2,8.32631]
[1746609931371,1.08622,1841.4,1841.3,1.08616]
[1746609934361,2.76482,1841.4,1841.3,1.08616]
[1746609934565,1.08624,1841.3,1841.2,4.29405]
[1746609934863,3.58804,1841.3,1841.2,4.29405]
[1746609935065,3.58804,1841.3,1841.2,1.08625]
[1746609943371,1.08636,1841.1,1841.0,3.2078]
[1746609943575,1.0865,1841.0,1840.9,1.08646]
[1746609943883,3.5539,1841.0,1840.9,1.08646]
[1746609947983,5.24638,1841.1,1841.0,1.08642]
[1746609948285,5.24638,1841.1,1841.0,3.57862]
[1746609948480,1.6648,1841.2,1841.1,1.08636]
[1746609948678,2.7511,1841.2,1841.1,2.71916]
[1746609948883,2.7511,1841.2,1841.1,3.56246]
[1746609949979,4.29409,1841.3,1841.2,1.0863]
[1746609950182,5.95889,1841.3,1841.2,2.7191]
[1746609951477,2.75109,1841.3,1841.2,2.7191]
[1746609952082,6.91209,1841.3,1841.2,2.7191]
[1746609952887,6.91204,1841.3,1841.2,2.7191]
[1746609954490,6.91204,1841.3,1841.2,1.0863]
[1746609954989,5.8258,1841.3,1841.2,1.0863]
[1746609956689,6.91204,1841.3,1841.2,1.0863]
[1746609956988,7.71054,1841.3,1841.2,1.0863]
[1746609958591,1.08635,1841.2,1841.1,1.08632]
[1746609958889,2.75805,1841.2,1841.1,1.08632]
[1746609961084,6.35805,1841.2,1841.1,1.08632]
[1746609962090,2.75805,1841.2,1841.1,1.08632]
[1746609965190,6.35805,1841.2,1841.1,1.08632]
[1746609965992,5.2717,1841.2,1841.1,1.08632]
[1746609966194,1.6717,1841.2,1841.1,1.08632]
[1746609966398,1.6717,1841.2,1841.1,2.83762]
[1746609967088,2.758,1841.2,1841.1,2.83762]
[1746609967288,2.758,1841.2,1841.1,1.08632]
[1746609971394,5.9658,1841.2,1841.1,1.08632]
[1746609977598,5.9658,1841.2,1840.9,5.30998]
[1746609977599,1.08642,1841.1,1840.9,2.5938]
[1746609977805,7.68731,1841.0,1840.7,15.74115106]
[1746609978099,4.29433,1840.8,1840.7,7.24346106]
[1746609978604,6.67363,1840.8,1840.7,7.24346106]
[1746609980801,6.67363,1840.8,1840.7,8.33005106]
[1746609981497,6.67363,1840.8,1840.7,1.08659]
[1746609981699,1.08659,1840.7,1840.6,2.68521]
[1746609981900,5.24559,1840.7,1840.6,2.68521]
[1746609982101,6.88699,1840.7,1840.6,2.68521]
[1746609984007,6.88699,1840.7,1840.6,1.5986]
[1746609984504,6.88699,1840.7,1840.6,2.68525]
[1746609985404,5.24559,1840.7,1840.6,2.68525]
[1746609987706,4.159,1840.7,1840.6,2.68525]
[1746609987911,3.2078,1840.8,1840.7,1.08659]
[1746609988203,3.2078,1840.8,1840.7,3.49789]
[1746609989610,8.45429,1840.9,1840.8,1.08653]
[1746609989809,8.45429,1840.9,1840.8,3.57313]
[1746609990808,4.16,1840.9,1840.8,3.57313]
[1746609991207,4.16,1841.0,1840.9,1.08647]
[1746609991907,4.29421,1841.1,1840.8,6.30439]
[1746609992114,4.16,1841.1,1841.0,1.08642]
[1746609992410,6.90267,1841.3,1841.2,1.0863]
[1746609993212,1.0863,1841.2,1841.1,2.73851]
[1746609993413,4.4395,1841.2,1841.1,2.73851]
[1746609994909,1.08636,1841.1,1841.0,1.08639]
[1746609995112,2.75676,1841.1,1841.0,1.08639]
[1746609997617,1.08642,1841.0,1840.9,1.91434]
[1746609997918,1.08653,1840.9,1840.8,1.0865]
[1746609998120,1.08653,1840.8,1840.7,2.74025]
[1746609998320,2.69493,1840.8,1840.7,2.74025]
[1746609999522,2.69493,1840.8,1840.7,1.94725]
[1746610000121,2.69493,1840.8,1840.7,1.08655]
[1746610000327,1.08664,1840.7,1840.6,1.0866]
[1746610000618,2.68324,1840.7,1840.6,1.0866]
[1746610000822,6.84124,1840.7,1840.6,1.0866]
[1746610009019,5.7546,1840.7,1840.6,1.0866]
[1746610009318,5.7546,1840.7,1840.6,3.6876]